bitfinex-derivatives/quotes_BTCF0:USTF0_20230701
["timestamp","ask_amount","ask_price","bid_price","bid_amount"]
[1688183942877,0.58311781,30415.0,30414.0,1.05806469]
[1688183944278,0.58311781,30415.0,30414.0,1.039835]
[1688183945169,0.33672723,30415.0,30414.0,1.05806469]
[1688183945380,0.33672723,30415.0,30414.0,1.07691414]
[1688183951595,0.33672723,30415.0,30414.0,1.05868445]
[1688183951771,0.35557668,30415.0,30414.0,1.05806469]
[1688183952683,0.38618485,30415.0,30414.0,1.039835]
[1688183952879,0.58311804,30415.0,30414.0,1.039835]
[1688183953477,0.56426859,30415.0,30414.0,1.07691414]
[1688183956784,0.56426859,30415.0,30414.0,1.05868445]
[1688183957092,0.56426859,30415.0,30414.0,1.07691414]
[1688183957591,0.56426859,30415.0,30414.0,1.039835]
[1688183959095,0.56426859,30415.0,30414.0,1.05806469]
[1688183959694,0.56426859,30415.0,30414.0,1.039835]
[1688183960193,0.3673354,30415.0,30414.0,1.039835]
[1688183960788,0.3673354,30415.0,30414.0,0.679035]
[1688183961193,0.3673354,30415.0,30414.0,1.039835]
[1688183962790,0.3673354,30415.0,30414.0,0.679035]
[1688183962994,0.3673354,30415.0,30414.0,1.039835]
[1688183963391,0.3673354,30415.0,30414.0,1.07691414]
[1688183964695,0.3673354,30415.0,30414.0,0.71611414]
[1688183964997,0.3673354,30415.0,30414.0,1.07691414]
[1688183965290,0.3673354,30415.0,30414.0,0.71611414]
[1688183965594,0.3673354,30415.0,30414.0,1.07691414]
[1688183966192,0.33672723,30415.0,30414.0,1.07691414]
[1688183967698,0.56426819,30415.0,30414.0,1.07691414]
[1688183967901,0.56426819,30415.0,30414.0,1.05868445]
[1688183968496,0.56426819,30415.0,30414.0,1.07691414]
[1688183968800,0.56426819,30415.0,30414.0,1.05868445]
[1688183969195,0.56426819,30415.0,30414.0,1.07691414]
[1688183973404,0.56426819,30415.0,30414.0,0.71611414]
[1688183973604,0.56426819,30415.0,30414.0,1.07691414]
[1688183975199,0.33672723,30415.0,30414.0,1.07691414]
[1688183978112,0.36733528,30415.0,30414.0,1.07691414]
[1688183978410,0.36733528,30415.0,30414.0,1.039835]
[1688183978612,0.36733528,30415.0,30414.0,1.05806469]
[1688183979814,0.38618473,30415.0,30414.0,1.039835]
[1688183980618,0.36733528,30415.0,30414.0,1.039835]
[1688183980915,0.36733528,30415.0,30414.0,1.05806469]
[1688183981116,0.36733528,30415.0,30414.0,1.07691414]
[1688183981819,0.34760128,30415.0,30414.0,1.07691414]
[1688183982117,0.31699323,30415.0,30414.0,1.07691414]
[1688183982716,0.34760096,30415.0,30414.0,1.05868445]
[1688183983019,0.54453415,30415.0,30414.0,1.07691414]
[1688183985416,0.56426815,30415.0,30414.0,1.07691414]
[1688183985917,0.54453415,30415.0,30414.0,1.07691414]
[1688183986521,0.22803415,30415.0,30414.0,1.07691414]
[1688183986922,0.24776915,30415.0,30414.0,1.07691414]
[1688183989917,0.24776915,30415.0,30414.0,0.71611414]
[1688183990320,0.02022823,30415.0,30414.0,1.07691414]
[1688184002929,0.03907768,30415.0,30414.0,1.039835]
[1688184003131,0.02022823,30415.0,30414.0,1.05806469]
[1688184003733,0.02022823,30415.0,30414.0,1.07691414]
[1688184005431,0.05083559,30415.0,30414.0,1.07691414]
[1688184012946,0.02022823,30415.0,30414.0,1.07691414]
[1688184017152,0.19693319,30421.0,30420.0,1.0]
[1688184017340,0.57462222,30428.0,30421.0,0.0066]
[1688184017649,0.23003552,30428.0,30427.0,0.7155]
[1688184017839,0.0305972,30428.0,30427.0,0.77230614]
[1688184018644,0.3121,30430.0,30427.0,0.77230614]
[1688184018850,0.3121,30430.0,30429.0,0.355]
[1688184019050,0.3121,30430.0,30429.0,0.42912151]
[1688184019539,0.3121,30430.0,30429.0,0.46620065]
[1688184023353,0.44309751,30430.0,30429.0,0.46620065]
[1688184023954,0.3121,30430.0,30429.0,0.46620065]
[1688184024254,0.44304546,30430.0,30429.0,0.46620065]
[1688184026254,0.3121,30430.0,30429.0,0.46620065]
[1688184026551,0.3121,30430.0,30429.0,0.49190059]
[1688184027149,0.41027977,30430.0,30429.0,0.49190059]
[1688184027351,0.09817977,30430.0,30429.0,0.49190059]
[1688184027851,0.049302,30437.0,30433.0,0.3515]
[1688184028152,0.049302,30437.0,30436.0,0.7158]
[1688184028356,0.07989505,30437.0,30436.0,0.735521]
[1688184028656,0.07989506,30437.0,30436.0,0.77260014]
[1688184029355,0.049302,30437.0,30436.0,0.77260014]
[1688184037563,0.049302,30437.0,30436.0,0.75437045]
[1688184038258,0.049302,30437.0,30436.0,0.77260014]
[1688184038648,0.049302,30437.0,30436.0,0.374721]
[1688184039463,0.24581034,30437.0,30436.0,0.374721]
[1688184040359,0.22696089,30437.0,30436.0,0.374721]
[1688184040554,0.24581034,30437.0,30436.0,0.374721]
[1688184041760,0.59227479,30437.0,30436.0,0.374721]
[1688184042157,0.60661034,30437.0,30436.0,0.374721]
[1688184042873,0.443287,30437.0,30436.0,0.374721]
[1688184043166,0.45959219,30437.0,30436.0,0.374721]
[1688184043360,0.42640719,30437.0,30436.0,0.39357045]
[1688184044260,0.42640719,30437.0,30436.0,0.374721]
[1688184044464,0.44074274,30437.0,30436.0,0.374721]
[1688184044663,0.45959219,30437.0,30436.0,0.374721]
[1688184047472,0.44074274,30437.0,30436.0,0.39357045]
[1688184048463,0.45959219,30437.0,30436.0,0.374721]
[1688184048663,0.45959219,30437.0,30436.0,0.355]
[1688184048868,0.49668815,30437.0,30436.0,0.355]
[1688184049073,0.49668821,30437.0,30436.0,0.355]
[1688184049467,0.49668821,30437.0,30436.0,0.24620898]
[1688184049867,0.033185,30436.0,30434.0,0.355]
[1688184050075,0.735522,30435.0,30434.0,0.355]
[1688184050270,0.81614316,30435.0,30434.0,0.355]
[1688184050473,0.9489495,30435.0,30434.0,0.355]
[1688184050977,0.78554493,30435.0,30434.0,0.355]
[1688184052271,0.9489495,30435.0,30434.0,0.355]
[1688184054176,0.78554493,30435.0,30434.0,0.355]
[1688184054975,0.43054493,30435.0,30434.0,0.3519]
[1688184057878,0.46114136,30435.0,30434.0,0.3519]
[1688184058281,0.65723348,30435.0,30434.0,0.3519]
[1688184059677,0.62404848,30435.0,30434.0,0.39047145]
[1688184060278,0.47555044,30435.0,30434.0,0.40870114]
[1688184060580,0.47555044,30435.0,30434.0,0.39047145]
[1688184061980,0.48988599,30435.0,30434.0,0.371622]
[1688184062276,0.50873544,30435.0,30434.0,0.371622]
[1688184063481,0.77125766,30435.0,30434.0,0.371622]
[1688184063983,0.50873544,30435.0,30434.0,0.371622]
[1688184065179,0.50873544,30435.0,30434.0,0.374722]
[1688184065786,0.14793544,30435.0,30434.0,0.374722]
[1688184066378,0.37778295,30435.0,30434.0,0.374722]
[1688184067489,0.3634474,30435.0,30434.0,0.374722]
[1688184067986,0.37778295,30435.0,30434.0,0.374722]
[1688184069090,0.34459795,30435.0,30434.0,0.39295169]
[1688184069391,0.34459795,30435.0,30434.0,0.374722]
[1688184069977,0.3589335,30435.0,30434.0,0.374722]
[1688184070288,0.34459795,30435.0,30434.0,0.374722]
[1688184070687,0.37778295,30435.0,30434.0,0.374722]
[1688184072883,0.47844794,30435.0,30434.0,0.374722]
[1688184076177,0.21592572,30435.0,30434.0,0.374722]
[1688184077490,0.20159017,30435.0,30434.0,0.374722]
[1688184077686,0.21592572,30435.0,30434.0,0.374722]
[1688184078191,0.57672572,30435.0,30434.0,0.374722]
[1688184080385,0.50873544,30435.0,30434.0,0.374722]
[1688184081393,0.50873544,30435.0,30434.0,0.355]
[1688184081592,0.57672878,30435.0,30434.0,0.355]
[1688184081895,0.83954173,30435.0,30434.0,0.355]
[1688184082792,0.83956858,30435.0,30434.0,0.355]
[1688184083097,0.83956872,30435.0,30434.0,0.355]
[1688184083288,0.57672878,30435.0,30434.0,0.355]
[1688184087199,0.83957109,30435.0,30434.0,0.355]
[1688184090697,1.15167109,30435.0,30434.0,0.355]
[1688184095510,0.88882878,30435.0,30434.0,0.355]
[1688184095697,1.18296379,30435.0,30434.0,0.355]
[1688184100011,1.18296379,30435.0,30434.0,0.374722]
[1688184103104,1.15167927,30435.0,30434.0,0.374722]
[1688184110411,1.08368593,30435.0,30434.0,0.374722]
[1688184110616,1.15167757,30435.0,30434.0,0.374722]
[1688184111616,1.15167757,30435.0,30434.0,0.374725]
[1688184111814,1.15167757,30435.0,30434.0,0.355]
[1688184117916,0.88882708,30435.0,30434.0,0.355]
[1688184118216,1.18296209,30435.0,30434.0,0.355]
[1688184121122,0.82216209,30435.0,30434.0,0.355]
[1688184121321,1.18296209,30435.0,30434.0,0.355]
[1688184121915,0.82216209,30435.0,30434.0,0.355]
[1688184122315,1.18296209,30435.0,30434.0,0.355]
[1688184123918,0.88882708,30435.0,30434.0,0.355]
[1688184125515,1.15162928,30435.0,30434.0,0.355]
[1688184127220,0.88882708,30435.0,30434.0,0.355]
[1688184127420,1.15164354,30435.0,30434.0,0.355]
[1688184133125,1.18447956,30435.0,30434.0,0.355]
[1688184135830,0.82367956,30435.0,30434.0,0.355]
[1688184136031,1.18447956,30435.0,30434.0,0.355]
[1688184136637,0.88882708,30435.0,30434.0,0.355]
[1688184136831,0.52382008,30435.0,30434.0,0.39356945]
[1688184137133,0.27003182,30435.0,30434.0,1.10936945]
[1688184137337,0.28975382,30435.0,30434.0,1.10936945]
[1688184137632,0.28975382,30435.0,30434.0,1.12759914]
[1688184138223,0.0326238,30435.0,30434.0,1.12759914]
[1688184139527,0.0326238,30435.0,30434.0,1.48839914]
[1688184141228,0.2295771,30435.0,30434.0,1.48839914]
[1688184141433,0.22957533,30435.0,30434.0,1.48839914]
[1688184142222,0.20985333,30435.0,30434.0,1.48839914]
[1688184143441,0.22957033,30435.0,30434.0,1.48839914]
[1688184144942,0.049294,30436.0,30434.0,1.48839914]
[1688184145129,0.01300681,30435.0,30434.0,0.74132]
[1688184145330,0.019717,30435.0,30434.0,1.44762]
[1688184145536,0.0262481,30435.0,30434.0,1.44762]
[1688184145841,0.0065311,30435.0,30434.0,1.48469914]
[1688184148036,0.23631105,30435.0,30434.0,1.48469914]
[1688184148236,0.28389902,30435.0,30434.0,1.48469914]
[1688184151437,0.30361802,30435.0,30434.0,1.48469914]
[1688184152044,0.32246747,30435.0,30434.0,1.44762]
[1688184152244,0.09268752,30435.0,30434.0,1.44762]
[1688184153245,0.07383807,30435.0,30434.0,1.44762]
[1688184153844,0.07383807,30435.0,30434.0,1.48469914]
[1688184154045,0.07383807,30435.0,30434.0,0.76309914]
[1688184154343,0.07383807,30435.0,30434.0,1.12389914]
[1688184154545,0.07383807,30435.0,30434.0,1.10566945]
[1688184155041,0.02621888,30435.0,30434.0,0.75136945]
[1688184155242,0.02458647,30435.0,30434.0,0.75136945]
[1688184155839,0.02458647,30435.0,30434.0,0.76959914]
[1688184156640,0.02458647,30435.0,30434.0,0.75136945]
[1688184158641,0.02458647,30435.0,30434.0,0.73252]
[1688184159948,0.22135772,30435.0,30434.0,0.73252]
[1688184160551,0.25454272,30435.0,30434.0,0.73252]
[1688184160949,0.24020717,30435.0,30434.0,0.73252]
[1688184161853,0.25454272,30435.0,30434.0,0.73252]
[1688184162051,0.04343592,30435.0,30434.0,0.37172]
[1688184163157,0.09102896,30435.0,30434.0,0.37172]
[1688184164152,0.10536451,30435.0,30434.0,0.37172]
[1688184165254,0.09102896,30435.0,30434.0,0.37172]
[1688184166251,0.10536451,30435.0,30434.0,0.37172]
[1688184166451,0.09102896,30435.0,30434.0,0.37172]
[1688184169453,0.10536451,30435.0,30434.0,0.37172]
[1688184170760,0.09102896,30435.0,30434.0,0.37172]
[1688184170959,0.10536451,30435.0,30434.0,0.37172]
[1688184171146,0.09102896,30435.0,30434.0,0.37172]
[1688184171350,0.07217951,30435.0,30434.0,0.37172]
[1688184171561,0.07217951,30435.0,30434.0,0.39056945]
[1688184171960,0.02458647,30435.0,30434.0,0.40879914]
[1688184172159,0.07217761,30435.0,30434.0,0.40879914]
[1688184172561,0.07217761,30435.0,30434.0,0.39056945]
[1688184172963,0.07217761,30435.0,30434.0,0.37172]
[1688184173963,0.07217761,30435.0,30434.0,0.39056945]
[1688184175056,0.07217761,30435.0,30434.0,0.37172]
[1688184175256,0.10536261,30435.0,30434.0,0.37172]
[1688184175451,0.33498237,30435.0,30434.0,0.37172]
[1688184176864,0.33498237,30435.0,30434.0,0.352]
[1688184177069,0.33498237,30435.0,30434.0,0.371723]
[1688184177361,0.33498237,30435.0,30434.0,0.352]
[1688184177555,0.33498237,30435.0,30434.0,0.371723]
[1688184178864,0.32064682,30435.0,30434.0,0.371723]
[1688184179571,0.33498237,30435.0,30434.0,0.732523]
[1688184180956,0.33498237,30435.0,30434.0,0.7128]
[1688184181168,0.33504237,30435.0,30434.0,0.7128]
[1688184182669,0.33504237,30435.0,30434.0,0.352]
[1688184185561,0.43589554,30435.0,30434.0,0.352]
[1688184186063,0.43589554,30435.0,30434.0,0.371723]
[1688184190661,0.43589554,30435.0,30434.0,0.352]
[1688184190868,0.17341195,30435.0,30434.0,0.352]
[1688184193072,0.10542261,30435.0,30434.0,0.352]
[1688184193369,0.33516106,30435.0,30434.0,0.352]
[1688184194568,0.10542261,30435.0,30434.0,0.352]
[1688184194769,0.33517127,30435.0,30434.0,0.352]
[1688184196369,0.10542261,30435.0,30434.0,0.352]
[1688184196976,0.33519428,30435.0,30434.0,0.352]
[1688184198573,0.33519428,30435.0,30434.0,0.371719]
[1688184198773,0.31634483,30435.0,30434.0,0.371719]
[1688184198969,0.08657316,30435.0,30434.0,0.371719]
[1688184199173,0.08657316,30435.0,30434.0,0.39056845]
[1688184200078,0.08657316,30435.0,30434.0,0.371719]
[1688184201287,0.10542261,30435.0,30434.0,0.371719]
[1688184203875,0.10542261,30435.0,30434.0,0.732519]
[1688184204575,0.09108706,30435.0,30434.0,0.732519]
[1688184204775,0.10542261,30435.0,30434.0,0.732519]
[1688184205279,0.33519428,30435.0,30434.0,0.371719]
[1688184206784,0.02083555,30434.0,30428.0,0.049308]
[1688184206985,0.02622,30433.0,30427.0,0.3608]
[1688184207185,0.19692696,30431.0,30427.0,0.3608]
[1688184207385,0.24983496,30430.0,30427.0,0.3608]
[1688184207575,0.3243,30429.0,30427.0,0.3608]
[1688184207780,0.019723,30428.0,30427.0,0.3608]
[1688184207982,0.052908,30428.0,30427.0,0.7137]
[1688184208290,0.25479998,30428.0,30427.0,0.7137]
[1688184209091,0.05787302,30428.0,30427.0,0.7137]
[1688184215480,0.22191009,30428.0,30427.0,0.7137]
[1688184218487,0.05787302,30428.0,30427.0,0.7137]
[1688184218688,0.22188504,30428.0,30427.0,0.7137]
[1688184223096,0.05787302,30428.0,30427.0,0.7137]
[1688184224305,0.02468802,30428.0,30427.0,0.7137]
[1688184224504,0.03902357,30428.0,30427.0,0.7137]
[1688184225402,0.02468802,30428.0,30427.0,0.7137]
[1688184225594,0.03902357,30428.0,30427.0,0.73254945]
[1688184225795,0.02468802,30428.0,30427.0,0.75227345]
[1688184228708,0.02468802,30428.0,30427.0,0.733424]
[1688184228899,0.03902357,30428.0,30427.0,0.733424]
[1688184229402,0.05787302,30428.0,30427.0,0.733424]
[1688184230609,0.22184167,30428.0,30427.0,0.733424]
[1688184233014,0.22184167,30428.0,30427.0,0.7137]
[1688184233418,0.20750612,30428.0,30427.0,0.7137]
[1688184233620,0.20750612,30428.0,30427.0,0.733424]
[1688184233819,0.22184167,30428.0,30427.0,0.733424]
[1688184234219,0.20750612,30428.0,30427.0,0.733424]
[1688184234420,0.22184167,30428.0,30427.0,0.733424]
[1688184236924,0.22184167,30428.0,30427.0,0.372624]
[1688184237116,0.22184167,30428.0,30427.0,0.733424]
[1688184238024,0.05787302,30428.0,30427.0,0.733424]
[1688184238816,0.04353747,30428.0,30427.0,0.733424]
[1688184239017,0.05787302,30428.0,30427.0,0.733424]
[1688184239323,0.02468802,30428.0,30427.0,0.733424]
[1688184239923,0.03902357,30428.0,30427.0,0.733424]
[1688184240225,0.02468802,30428.0,30427.0,0.733424]
[1688184240423,0.03902357,30428.0,30427.0,0.733424]
[1688184240725,0.05787302,30428.0,30427.0,0.733424]
[1688184242022,0.05787302,30428.0,30427.0,0.372624]
[1688184242319,0.05787302,30428.0,30427.0,0.733424]
[1688184242929,0.05787302,30428.0,30427.0,0.372624]
[1688184243227,0.05787302,30428.0,30427.0,0.733424]
[1688184245626,0.22195847,30428.0,30427.0,0.733424]
[1688184246024,0.04353747,30428.0,30427.0,0.733424]
[1688184246833,0.05787302,30428.0,30427.0,0.733424]
[1688184247131,0.04353747,30428.0,30427.0,0.733424]
[1688184247323,0.02468802,30428.0,30427.0,0.75227345]
[1688184248131,0.02468802,30428.0,30427.0,0.733424]
[1688184248525,0.03902357,30428.0,30427.0,0.733424]
[1688184248725,0.05787302,30428.0,30427.0,0.733424]
[1688184249031,0.04353747,30428.0,30427.0,0.733424]
[1688184249529,0.02468802,30428.0,30427.0,0.75165369]
[1688184249835,0.02468802,30428.0,30427.0,0.77050314]
[1688184250130,0.02468802,30428.0,30427.0,0.75227345]
[1688184250721,0.04353747,30428.0,30427.0,0.733424]
[1688184251117,0.05787302,30428.0,30427.0,0.733424]
[1688184253032,0.10547015,30428.0,30427.0,0.733424]
[1688184253331,0.07228515,30428.0,30427.0,0.733424]
[1688184253534,0.0911346,30428.0,30427.0,0.733424]
[1688184254520,0.0911346,30428.0,30427.0,0.7137]
[1688184254922,0.0911346,30428.0,30427.0,0.733425]
[1688184255131,0.10547015,30428.0,30427.0,0.7137]
[1688184255831,0.0911346,30428.0,30427.0,0.7137]
[1688184256237,0.0911346,30428.0,30427.0,0.733424]
[1688184256535,0.07228515,30428.0,30427.0,0.77050314]
[1688184256736,0.07228515,30428.0,30427.0,0.75227345]
[1688184257644,0.0866207,30428.0,30427.0,0.75227345]
[1688184257834,0.07228515,30428.0,30427.0,0.75227345]
[1688184258426,0.07228515,30428.0,30427.0,0.733424]
[1688184259037,0.07228515,30428.0,30427.0,0.372624]
[1688184259230,0.07228515,30428.0,30427.0,0.733424]
[1688184260234,0.0866207,30428.0,30427.0,0.733424]
[1688184260631,0.05787302,30428.0,30427.0,0.733424]
[1688184260832,0.02468802,30428.0,30427.0,0.75227345]
[1688184261239,0.019723,30428.0,30427.0,0.75227345]
[1688184261538,0.0235913,30428.0,30427.0,0.77050314]
[1688184270144,0.0235913,30428.0,30427.0,0.75227345]
[1688184270351,0.0235913,30428.0,30427.0,0.77050314]
[1688184277653,0.0235913,30428.0,30427.0,0.75227345]
[1688184279647,0.0235913,30428.0,30427.0,0.77050314]
[1688184284340,0.0235913,30428.0,30427.0,0.75227345]
[1688184284743,0.0235913,30428.0,30427.0,0.733424]
[1688184286060,0.0235913,30428.0,30427.0,0.372624]
[1688184286253,0.0235913,30428.0,30427.0,0.733424]
[1688184286450,0.0235913,30428.0,30427.0,0.372624]
[1688184286654,0.0235913,30428.0,30427.0,0.733424]
[1688184287349,0.0235913,30428.0,30427.0,0.75227345]
[1688184287859,0.0235913,30428.0,30427.0,0.77050314]
[1688184291864,0.0235913,30428.0,30427.0,0.75227345]
[1688184292162,0.04244075,30428.0,30427.0,0.733424]
[1688184293062,0.0235913,30428.0,30427.0,0.733424]
[1688184293856,0.0235913,30428.0,30427.0,0.75227345]
[1688184294455,0.0235913,30428.0,30427.0,0.77050314]
[1688184295657,0.03792685,30428.0,30427.0,0.75227345]
[1688184295858,0.06261487,30428.0,30427.0,0.733424]
[1688184296167,0.04827932,30428.0,30427.0,0.733424]
[1688184296965,0.0235913,30428.0,30427.0,0.75227345]
[1688184298167,0.22078726,30428.0,30427.0,0.75227345]
[1688184299553,0.22078726,30428.0,30427.0,0.77050314]
[1688184299752,0.22078726,30428.0,30427.0,0.75227345]
[1688184300157,0.25397226,30428.0,30427.0,0.733424]
[1688184300563,0.23963671,30428.0,30427.0,0.733424]
[1688184300760,0.23963671,30428.0,30427.0,0.7137]
[1688184300959,0.22078726,30428.0,30427.0,0.73254945]
[1688184301664,0.22078726,30428.0,30427.0,0.75227545]
[1688184301868,0.22078726,30428.0,30427.0,0.77050514]
[1688184302165,0.22078726,30428.0,30427.0,0.75227545]
[1688184303069,0.00420396,30428.0,30427.0,0.75077914]
[1688184303271,0.02392896,30428.0,30427.0,0.77050514]
[1688184303460,0.03826451,30428.0,30427.0,0.75227545]
[1688184303960,0.02392896,30428.0,30427.0,0.75227545]
[1688184304160,0.02392896,30428.0,30427.0,0.73254945]
[1688184304561,0.03826451,30428.0,30427.0,0.73254945]
[1688184305166,0.02392896,30428.0,30427.0,0.73254945]
[1688184305970,0.02392896,30428.0,30427.0,0.75227545]
[1688184306971,0.02392896,30428.0,30427.0,0.73254945]
[1688184307561,0.02392896,30428.0,30427.0,0.75227545]
[1688184308672,0.02392896,30428.0,30427.0,0.77050514]
[1688184309666,0.02392896,30428.0,30427.0,0.75227545]
[1688184309864,0.02392896,30428.0,30427.0,0.77050514]
[1688184310760,0.02392896,30428.0,30427.0,1.13130514]
[1688184312067,0.02392896,30428.0,30427.0,1.11307545]
[1688184312967,0.02392896,30428.0,30427.0,1.13130514]
[1688184313965,0.00420396,30428.0,30427.0,1.13130514]
[1688184314363,0.27906013,30430.0,30428.0,0.03707914]
[1688184314364,0.22974813,30430.0,30428.0,0.03707914]
[1688184314563,0.27734361,30430.0,30429.0,0.371625]
[1688184314782,0.04759548,30430.0,30429.0,0.675025]
[1688184314979,0.04759548,30430.0,30429.0,1.06410414]
[1688184316777,0.06731948,30430.0,30429.0,1.06410414]
[1688184317370,0.37621948,30430.0,30429.0,1.06410414]
[1688184317568,0.37621948,30430.0,30429.0,1.42490414]
[1688184320680,0.328624,30430.0,30429.0,1.40667445]
[1688184322175,0.328624,30430.0,30429.0,1.42490414]
[1688184322779,0.328624,30430.0,30429.0,1.40667445]
[1688184323285,0.328624,30430.0,30429.0,1.42490414]
[1688184323780,0.3089,30430.0,30429.0,1.42490414]
[1688184324978,0.3089,30430.0,30429.0,1.07300414]
[1688184327379,0.3089,30430.0,30429.0,1.09921233]
[1688184327887,0.3089,30430.0,30429.0,1.46001233]
[1688184328186,0.50607594,30430.0,30429.0,1.46001233]
[1688184328885,0.50607594,30430.0,30429.0,1.44178264]
[1688184329280,0.52041149,30430.0,30429.0,1.44178264]
[1688184329483,0.50607594,30430.0,30429.0,1.44178264]
[1688184330189,0.50607594,30430.0,30429.0,1.46001233]
[1688184331694,0.50607594,30430.0,30429.0,1.44178264]
[1688184331899,0.50607594,30430.0,30429.0,1.46001233]
[1688184333997,0.50607594,30430.0,30429.0,1.44178264]
[1688184334896,0.50607594,30430.0,30429.0,1.46001233]
[1688184335794,0.3089,30430.0,30429.0,1.46001233]
[1688184338794,0.3089,30430.0,30429.0,1.44178264]
[1688184339479,0.3089,30430.0,30429.0,1.46001233]
[1688184343391,0.19766891,30431.0,30429.0,1.46001233]
[1688184343594,0.00049297,30431.0,30430.0,0.74337914]
[1688184343798,0.00049297,30431.0,30430.0,0.76310314]
[1688184345101,0.19717594,30432.0,30430.0,0.726024]
[1688184345290,0.19717594,30432.0,30431.0,0.72574945]
[1688184345491,0.19717594,30432.0,30431.0,0.79986796]
[1688184345791,0.19717594,30432.0,30431.0,0.81809765]
[1688184348006,0.19717594,30432.0,30431.0,1.53969765]
[1688184350702,0.52387594,30434.0,30431.0,1.53969765]
[1688184351003,0.52387594,30434.0,30433.0,0.725122]
[1688184351203,0.52387594,30434.0,30433.0,1.446722]
[1688184352210,0.52387594,30434.0,30433.0,1.48380114]
[1688184353803,0.57161737,30434.0,30433.0,1.446722]
[1688184354009,0.54272539,30434.0,30433.0,1.446722]
[1688184355714,0.52387594,30434.0,30433.0,1.446722]
[1688184356509,0.52387594,30434.0,30433.0,1.48380114]
[1688184358213,0.52387594,30434.0,30433.0,1.46557145]
[1688184358413,0.55706094,30434.0,30433.0,1.446722]
[1688184358618,0.34554945,30434.0,30433.0,1.085922]
[1688184358814,0.359885,30434.0,30433.0,1.085922]
[1688184359008,0.55702702,30434.0,30433.0,1.085922]
[1688184359418,0.40747697,30434.0,30433.0,1.085922]
[1688184359617,0.359885,30434.0,30433.0,1.085922]
[1688184359920,0.55702792,30434.0,30433.0,1.085922]
[1688184363527,0.55702792,30434.0,30433.0,1.11156988]
[1688184363822,0.60462021,30434.0,30433.0,1.11156988]
[1688184364023,0.40747729,30434.0,30433.0,1.11156988]
[1688184365016,0.359885,30434.0,30433.0,1.11156988]
[1688184365216,0.40747675,30434.0,30433.0,1.11156988]
[1688184368122,0.3931412,30434.0,30433.0,1.11156988]
[1688184368419,0.40747675,30434.0,30433.0,1.11156988]
[1688184373025,0.37429175,30434.0,30433.0,1.11156988]
[1688184373224,0.6043289,30434.0,30433.0,1.11156988]
[1688184373826,0.6375139,30434.0,30433.0,1.11156988]
[1688184375028,0.6375139,30434.0,30433.0,0.76006988]
[1688184375924,0.61866445,30434.0,30433.0,0.76006988]
[1688184376319,0.6375139,30434.0,30433.0,0.76006988]
[1688184378331,0.6375139,30434.0,30433.0,0.39926988]
[1688184378526,0.6375139,30434.0,30433.0,0.76006988]
[1688184380631,0.73802458,30434.0,30433.0,0.76006988]
[1688184386932,0.80316117,30434.0,30433.0,0.76006988]
[1688184388144,0.70279121,30434.0,30433.0,0.76006988]
[1688184389030,0.70279121,30434.0,30433.0,0.74034788]
[1688184389538,0.70279121,30434.0,30433.0,0.76006888]
[1688184391846,0.70279121,30434.0,30433.0,0.734361]
[1688184392046,0.70279121,30434.0,30433.0,0.71464]
[1688184395747,0.54060145,30434.0,30433.0,0.71464]
[1688184396046,0.80316056,30434.0,30433.0,0.734359]
[1688184398752,0.80316056,30434.0,30433.0,0.373559]
[1688184398947,0.80316056,30434.0,30433.0,0.734359]
[1688184403255,0.70279991,30434.0,30433.0,0.734359]
[1688184408564,0.70279991,30434.0,30433.0,0.71464]
[1688184411365,0.70929991,30434.0,30433.0,0.71464]
[1688184411567,1.06429991,30434.0,30430.0,0.380521]
[1688184411870,0.19732132,30431.0,30430.0,0.380521]
[1688184412068,0.19732132,30431.0,30430.0,0.734821]
[1688184412467,0.23050632,30431.0,30430.0,0.734821]
[1688184418085,0.08077898,30431.0,30430.0,0.734821]
[1688184418770,0.10724007,30431.0,30430.0,0.734821]
[1688184419183,0.17427416,30431.0,30430.0,0.734821]
[1688184425584,0.12668018,30431.0,30430.0,0.734821]
[1688184433190,0.1742735,30431.0,30430.0,0.734821]
[1688184440594,0.12668018,30431.0,30430.0,0.734821]
[1688184447100,0.44588018,30431.0,30430.0,0.734821]
[1688184450904,0.41269518,30431.0,30430.0,0.734821]
[1688184451207,0.09349518,30431.0,30430.0,0.734821]
[1688184451509,0.19724759,30432.0,30430.0,0.734821]
[1688184451709,0.23043259,30432.0,30431.0,0.3529]
[1688184452006,0.23043259,30432.0,30431.0,0.372621]
[1688184452408,0.25710118,30432.0,30431.0,0.372621]
[1688184454798,0.25710118,30432.0,30431.0,1.094221]
[1688184455611,0.2900618,30432.0,30431.0,1.094221]
[1688184455900,0.33765339,30432.0,30431.0,1.094221]
[1688184461606,0.10744518,30432.0,30431.0,0.733421]
[1688184462109,0.29002307,30432.0,30431.0,0.733421]
[1688184462413,0.33761466,30432.0,30431.0,0.733421]
[1688184462815,0.10744518,30432.0,30431.0,0.733421]
[1688184477522,0.09310963,30432.0,30431.0,0.733421]
[1688184478415,0.24280149,30432.0,30431.0,0.733421]
[1688184478815,0.25713704,30432.0,30431.0,0.733421]
[1688184479519,0.24280149,30432.0,30431.0,0.733421]
[1688184479724,0.22395204,30432.0,30431.0,0.75227045]
[1688184480225,0.22395204,30432.0,30431.0,0.77050014]
[1688184480422,0.22395204,30432.0,30431.0,0.75227045]
[1688184480923,0.22395204,30432.0,30431.0,0.77050014]
[1688184485829,0.25683262,30432.0,30431.0,0.77050014]
[1688184486126,0.30442278,30432.0,30431.0,0.77050014]
[1688184486530,0.30442278,30432.0,30431.0,0.75227045]
[1688184487726,0.30442278,30432.0,30431.0,0.77050014]
[1688184490328,0.30442278,30432.0,30431.0,0.75227045]
[1688184491230,0.30442278,30432.0,30431.0,0.77050014]
[1688184491632,0.07425875,30432.0,30431.0,0.77050014]
[1688184492132,0.04759016,30432.0,30431.0,0.77710014]
[1688184493332,0.21607638,30433.0,30431.0,0.77710014]
[1688184493632,0.21607638,30433.0,30432.0,0.7133]
[1688184493931,0.21607638,30433.0,30432.0,0.73302]
[1688184494133,0.21607638,30433.0,30432.0,1.03782]
[1688184494927,0.19722693,30433.0,30432.0,1.07489914]
[1688184495838,0.19722693,30433.0,30432.0,1.05604969]
[1688184496037,0.19722693,30433.0,30432.0,1.07489914]
[1688184498441,0.19722693,30433.0,30432.0,1.05666945]
[1688184499238,0.19722693,30433.0,30432.0,1.07489914]
[1688184500831,0.23065694,30435.0,30432.0,1.07489914]
[1688184500832,0.19722693,30434.0,30432.0,1.07489914]
[1688184501042,0.19722693,30434.0,30433.0,0.3543]
[1688184501241,0.19722693,30434.0,30433.0,0.374019]
[1688184501832,0.19722693,30434.0,30433.0,0.39286845]